fUSD/lending_fUSD_20251023
["ID","MTS","AMOUNT","RATE_DAILY","PERIOD"]
[392153585,1761216634494,-500.0,0.00044872,120]
[392153586,1761216634503,-500.0,0.00044872,30]
[392153587,1761216634512,-514.28,0.00044872,120]
[392153588,1761216634522,-514.54,0.00044872,120]
[392153589,1761216634531,-500.0,0.00044872,120]
[392153590,1761216634541,-500.0,0.00044872,120]
[392153591,1761216634550,-588.53,0.00044872,120]
[392153592,1761216634560,-500.0,0.00044872,120]
[392153593,1761216634569,-712.26,0.00044872,120]
[392153594,1761216634579,-388.46120264,0.00044872,120]
[392153595,1761216634588,-500.0,0.00044872,120]
[392153596,1761216634598,-500.0,0.00044872,120]
[392153597,1761216634607,-500.0,0.00044872,120]
[392153598,1761216634616,-500.0,0.00044872,120]
[392153599,1761216634625,-500.0,0.00044872,120]
[392153600,1761216634635,-500.0,0.00044872,120]
[392153601,1761216634644,-500.0,0.00044872,120]
[392153602,1761216634653,-500.0,0.00044872,120]
[392153603,1761216634663,-500.0,0.00044872,120]
[392153604,1761216634674,-508.7,0.00044872,120]
[392153605,1761216634683,-671.41,0.00044872,120]
[392153606,1761216634692,-500.0,0.00044872,120]
[392153607,1761216634704,-500.0,0.00044872,120]
[392153608,1761216634714,-500.0,0.00044872,120]
[392153609,1761216634723,-5000.0,0.0004488,120]
[392153610,1761216634732,-2210.52837503,0.00044882,15]
[392153611,1761216634741,-16921.889776,0.0004489,3]
[392153612,1761216634750,-8460.94488798,0.00044891,3]
[392153613,1761216634759,-1156.40003246,0.000449,120]
[392153614,1761216634768,-20830.60092723,0.000449,120]
[392153615,1761216634891,-26652.5590784,0.000449,120]
[392153616,1761216634909,-297.73399999,0.000449,120]
[392153617,1761216634920,-6387.09189438,0.000449,120]
[392153618,1761216634929,-2210.52837503,0.000449,15]
[392153619,1761216634938,-167.07597198,0.000449,2]
[392153620,1761216634947,-2283.76674244,0.000449,2]
[392153621,1761216634956,-587.02042798,0.000449,2]
[392153622,1761216634965,-1832.73960916,0.00044903,3]
[392153623,1761216638163,-1500.0,0.000446,16]
[392153624,1761216638172,-2000.0,0.000447,16]
[392153625,1761216638181,-500.0,0.00044839,120]
[392153626,1761216638191,-8706.71016152,0.00044868,15]
[392153627,1761216638200,-427.16473792,0.00044871,120]
[392153628,1761216638210,-502.99,0.00044871,120]
[392153629,1761216638219,-6628.20527882,0.00044903,3]
[392153630,1761216638228,-2670.0,0.0004491,7]
[392153631,1761216638238,-8460.94488798,0.0004492,3]
[392153632,1761216638247,-8460.94488798,0.0004493,3]
[392153633,1761216638257,-150.0,0.00044939,120]
[392153634,1761216638267,-195.0,0.00044939,120]
[392153635,1761216638276,-8077.69384447,0.00044939,3]
[392153636,1761216638287,-383.25104351,0.00044939,3]
[392153637,1761216638297,-2092.14996843,0.0004494,3]
[392153638,1761216638313,-14829.73980757,0.0004494,3]
[392153639,1761216638323,-33148.5234,0.0004495,2]
[392153640,1761216638333,-759.87221346,0.00044955,120]
[392153641,1761216638344,-260.91872561,0.00044956,120]
[392153642,1761216638353,-759.87221346,0.00044959,120]
[392153643,1761216638362,-8133.54022705,0.00044959,120]
[392153645,1761216638372,-370.74204939,0.0004496,120]
[392153647,1761216638381,-8133.54022705,0.0004496,120]
[392153649,1761216638391,-33843.7795519,0.0004496,3]
[392153651,1761216638400,-260.91872561,0.00044961,120]
[392153653,1761216638410,-260.91872561,0.00044965,120]
[392153655,1761216638419,-21943.05148471,0.00044966,120]
[392153657,1761216638429,-662.42189047,0.00044968,120]
[392153659,1761216638438,-8460.94488798,0.00044969,3]
[392153660,1761216638447,-60422.37446593,0.0004497,3]
[392153666,1761216638634,-25.39683723,0.0004497,3]
[392153667,1761216638645,-7239.78780064,0.0004497,3]
[392153668,1761216638654,-45661.681322,0.0004497,3]
[392153669,1761216638664,-533.15473545,0.00044973,3]
[392153670,1761216638673,-500.0,0.00044973,2]
[392153671,1761216638682,-500.0,0.00044973,10]
[392153672,1761216638691,-500.0,0.00044973,10]
[392153673,1761216638701,-500.0,0.00044973,10]
[392153674,1761216638710,-662.42189047,0.00044973,120]
[392153675,1761216638719,-150.0,0.00044973,3]
[392153676,1761216638729,-150.0,0.00044973,2]
[392153677,1761216638739,-150.0,0.00044973,3]
[392153678,1761216638748,-150.0,0.00044973,3]
[392153679,1761216638757,-150.0,0.00044973,3]
[392153680,1761216638766,-150.0,0.00044973,120]
[392153681,1761216638775,-150.0,0.00044973,3]
[392153682,1761216638784,-150.0,0.00044973,3]
[392153683,1761216638793,-500.0,0.00044973,3]
[392153684,1761216638807,-150.0,0.00044973,3]
[392153685,1761216638816,-150.0,0.00044973,3]
[392153686,1761216638826,-500.0,0.00044973,3]
[392153687,1761216638835,-150.6120722,0.00044973,3]
[392153688,1761216638844,-150.0,0.00044973,3]
[392153689,1761216638853,-150.55573093,0.00044973,3]
[392153690,1761216638862,-150.0,0.00044973,3]
[392153691,1761216638871,-150.0,0.00044973,3]
[392153692,1761216638881,-150.0,0.00044973,3]
[392153693,1761216638890,-150.0,0.00044973,3]
[392153694,1761216638899,-150.0,0.00044973,2]
[392153695,1761216638909,-500.0,0.00044973,3]
[392153696,1761216638919,-150.0,0.00044973,2]
[392153697,1761216638928,-500.0,0.00044973,3]
[392153698,1761216638938,-150.0,0.00044973,3]
[392153699,1761216638948,-1281.68598461,0.00044973,120]
[392153700,1761216638958,-1281.68598461,0.00044974,120]
[392153701,1761216638969,-759.87221346,0.00044976,120]
[392153702,1761216638979,-662.42189047,0.00044977,120]
[392153703,1761216638989,-370.74204939,0.00044978,120]
[392153704,1761216638998,-500.0,0.0004498,120]
[392153705,1761216639008,-8460.94488798,0.0004498,3]
[392153706,1761216639018,-10147.0402938,0.0004498,3]
[392153707,1761216639027,-662.42189047,0.0004498,120]
[392153708,1761216639037,-759.87221346,0.00044982,120]
[392153709,1761216639046,-370.74204939,0.00044982,120]
[392153710,1761216639056,-8133.54022705,0.00044983,120]
[392153711,1761216639065,-21943.05148471,0.00044983,120]
[392153712,1761216639075,-21943.05148471,0.00044986,120]
[392153713,1761216639085,-8460.94488798,0.00044986,3]
[392153714,1761216639095,-5073.52014689,0.00044986,3]
[392153715,1761216639104,-150.0,0.00044986,30]
[392153716,1761216639113,-150.0,0.00044986,30]
[392153717,1761216639123,-150.0,0.00044986,30]
[392153718,1761216639135,-42304.7244399,0.0004499,3]
[392153719,1761216639144,-167426.164847,0.0004499,3]
[392153720,1761216639154,-276.93848611,0.0004499,7]
[392153721,1761216639168,-276.93848611,0.0004499,7]
[392153722,1761216639178,-150.32,0.0004499,2]
[392153723,1761216639187,-150.32,0.0004499,2]
[392153724,1761216639196,-150.32,0.0004499,2]
[392153725,1761216639206,-150.32,0.0004499,2]
[392153726,1761216639215,-150.32,0.0004499,2]
[392153727,1761216639224,-150.32,0.0004499,2]
[392153728,1761216639234,-150.32,0.0004499,2]
[392153729,1761216639243,-150.32,0.0004499,2]
[392153730,1761216639251,-150.32,0.0004499,2]
[392153731,1761216639261,-150.32,0.0004499,2]
[392153732,1761216639270,-150.32,0.0004499,2]
[392153733,1761216639279,-150.32,0.0004499,2]
[392153734,1761216639288,-150.32,0.0004499,2]
[392153735,1761216639297,-150.32,0.0004499,2]
[392153736,1761216639308,-150.32,0.0004499,2]
[392153737,1761216639317,-150.32,0.0004499,2]
[392153738,1761216639326,-150.32,0.0004499,2]
[392153739,1761216639335,-150.32,0.0004499,2]
[392153740,1761216639345,-150.32,0.0004499,2]
[392153741,1761216639355,-150.32,0.0004499,2]
[392153742,1761216639365,-150.32,0.0004499,2]
[392153743,1761216639374,-150.32,0.0004499,2]
[392153744,1761216639383,-150.32,0.0004499,2]
[392153745,1761216639393,-150.32,0.0004499,2]
[392153746,1761216639403,-150.32,0.0004499,2]
[392153747,1761216639414,-150.32,0.0004499,2]
[392153748,1761216639424,-150.32,0.0004499,2]
[392153749,1761216639544,-150.32,0.0004499,2]
[392153750,1761216639554,-150.32,0.0004499,2]
[392153751,1761216639563,-150.32,0.0004499,2]
[392153752,1761216639573,-150.32,0.0004499,2]
[392153753,1761216639582,-150.32,0.0004499,2]
[392153754,1761216639592,-150.32,0.0004499,2]
[392153755,1761216639602,-150.32,0.0004499,2]
[392153756,1761216639611,-150.32,0.0004499,2]
[392153757,1761216639621,-150.32,0.0004499,2]
[392153758,1761216639631,-150.32,0.0004499,2]
[392153759,1761216639640,-150.32,0.0004499,2]
[392153760,1761216639650,-150.32,0.0004499,2]
[392153761,1761216639659,-150.32,0.0004499,2]
[392153762,1761216639668,-150.32,0.0004499,2]
[392153763,1761216639677,-1281.68598461,0.00044991,120]
[392153764,1761216639686,-8133.54022705,0.00044991,120]
[392153765,1761216639695,-1281.68598461,0.00044991,120]
[392153766,1761216639705,-21943.05148471,0.00044992,120]
[392153767,1761216639714,-260.91872561,0.00044993,120]
[392153768,1761216639723,-6000.0,0.00044996,120]
[392153769,1761216639732,-370.74204939,0.00044998,120]
[392153770,1761216639741,-1497.54823266,0.00044999,14]
[392153771,1761216639751,-1055.99055337,0.00044999,60]
[392153772,1761216639761,-999.0,0.00044999,120]
[392153773,1761216639769,-1001.7878,0.00044999,2]
[392153774,1761216639779,-1000000.0,0.00045,120]
[392153775,1761216639788,-1000000.0,0.00045,120]
[392153776,1761216639799,-204138.0,0.00045,120]
[392153777,1761216639810,-1971.89,0.00045,14]
[392153778,1761216639820,-29212.12,0.00045,14]
[392153779,1761216639830,-1000000.0,0.00045,120]
[392153780,1761216639839,-6363.7,0.00045,30]
[392153781,1761216639848,-304937.12427139,0.00045,120]
[392153782,1761216639864,-4316.09547338,0.00045,120]
[392153788,1761216640437,-1.6e-07,0.00044731,2]
[392153791,1761216640459,-13405.51872339,0.00044731,2]
[392153793,1761216640473,-6564.05267645,0.00044731,2]
[392153795,1761216640483,-2500.0,0.000448,16]
[392153797,1761216640492,-1366.31914631,0.00044872,15]
[392153811,1761216640574,-2249.31021116,0.00044872,15]
[392153813,1761216640585,-359.09672553,0.00044872,15]
[392153814,1761216640597,-4731.9840785,0.00044872,15]
[392153815,1761216640607,-1137.6126835,0.00045,120]
[392153816,1761216640725,-20277.53070494,0.00045,120]
[392153817,1761216640739,-13696.0,0.00045,120]
[392153818,1761216640752,-1860.48,0.00045,120]
[392153819,1761216640766,-634.71317359,0.00045,120]
[392153822,1761216643186,-82.19239993,0.000449,16]
[392153823,1761216643248,-417.80760007,0.000449,16]
[392153824,1761216643259,-7349.94321993,0.00045,120]
[392153825,1761216643349,-338.42948133,0.00045,120]
[392153826,1761216643364,-516.74079999,0.00045,120]
[392153827,1761216643377,-353935.33019195,0.00045,120]
[392153828,1761216643387,-154.958546,0.00045,120]
[392153829,1761216643396,-251.236667,0.00045,120]
[392153830,1761216643405,-151.0,0.00045,120]
[392153831,1761216643415,-1753.43,0.00045,120]
[392153832,1761216643424,-155.165276,0.00045,120]
[392153833,1761216643434,-158.090056,0.00045,120]
[392153834,1761216643443,-151.0,0.00045,120]
[392153835,1761216643452,-151.0,0.00045,14]
[392153836,1761216643462,-151.0,0.00045,120]
[392153837,1761216643471,-151.0,0.00045,120]
[392153838,1761216643480,-156.318341,0.00045,120]
[392153839,1761216643496,-15825.53832358,0.00045,120]
[392153840,1761216643517,-103346.87991641,0.00045,120]
[392153869,1761216646234,-5664.7230577,0.00044875,15]
[392153870,1761216646246,-3041.9871038,0.00044875,15]
[392153871,1761216646256,-4718.9154522,0.00045,120]
[392153872,1761216646393,-30000.26699998,0.00045,120]
[392153877,1761216808306,-458.22347898,0.00024932,2]
[392153878,1761216973368,-41.77652102,0.00024932,2]
[392153879,1761216973521,-191.27078442,0.00027425,120]
[392153880,1761216975445,-175.04269456,0.00027425,120]
[392153881,1761216978792,-201.30880131,0.00027425,120]
[392153883,1761216980875,-184.51579586,0.00027425,120]
[392153889,1761217407948,-166.4582106,0.00024932,2]
[392153895,1761217555120,-333.5417894,0.00024932,2]
[392153896,1761217555147,-199.15013408,0.00027424,2]
[392153897,1761217555168,-166.42303469,0.00027425,2]
[392153898,1761217555188,-1200.0,0.00030165,2]
[392153899,1761217555209,-1200.0,0.00030165,2]
[392153900,1761217555231,-195.0,0.00030166,120]
[392153901,1761217555250,-725.08628811,0.00030166,120]
[392153904,1761217641088,-193.8115592,0.00030165,2]
[392153905,1761217641110,-400.0,0.00030165,2]
[392153906,1761217641131,-1774.18192191,0.00030166,120]
[392153907,1761217642089,-748.59371383,0.00030166,120]
[392153908,1761217642111,-250.0,0.00030166,2]
[392153909,1761217642130,-226.83493539,0.00030166,120]
[392153911,1761217749117,-151.0,0.00030166,2]
[392153912,1761217749138,-1717.74684224,0.00033182,120]
[392153913,1761217749162,-195.0,0.00033183,120]
[392153914,1761217749183,-151.0,0.00033379,2]
[392153915,1761217749204,-151.0,0.00033379,2]
[392153916,1761217749224,-206.56651862,0.00033379,2]
[392153917,1761217749244,-21.40545273,0.00033379,2]
[392153918,1761217750094,-129.59454727,0.00033379,2]
[392153919,1761217750117,-151.0,0.00033379,2]
[392153920,1761217750140,-211.4063678,0.00033379,2]
[392153921,1761217750728,236.62311839,0.00033379,2]
[392153922,1761217750876,151.0,0.00033379,2]
[392153923,1761217752132,-212.94,0.00034623,7]
[392153924,1761217752157,-4272.5364036,0.000347,3]
[392153925,1761217760142,-1239.4635964,0.000347,3]
[392153926,1761217760161,-3006.3335782,0.000354,5]
[392153928,1761217767090,-2506.6664218,0.000354,5]
[392153929,1761217767112,-153.0,0.000365,2]
[392153930,1761217767136,-2049.0,0.00036608,30]
[392153931,1761217767158,-256.16549843,0.000372,120]
[392153932,1761217767178,-164.37041908,0.000387,2]
[392153933,1761217767198,-150.99,0.000387,2]
[392153934,1761217767219,-250.0,0.00040323,2]
[392153935,1761217830242,151.0,0.00032935,2]
[392153941,1761217832235,-150.0,0.00040488,4]
[392153942,1761217832246,-150.0,0.00040488,4]
[392153943,1761217832255,-150.0,0.00040488,4]
[392153944,1761217832264,-150.0,0.00040488,4]
[392153945,1761217832274,-150.0,0.00040488,4]
[392153946,1761217832283,-150.0,0.00040488,4]
[392153947,1761217832293,-150.0,0.00040488,4]
[392153948,1761217832302,-150.0,0.00040488,4]
[392153949,1761217832311,-150.0,0.00040488,4]
[392153950,1761217832321,-150.0,0.00040488,4]
[392153951,1761217832331,-150.0,0.00040488,4]
[392153952,1761217832340,-150.0,0.00040488,4]
[392153953,1761217832351,-500.0,0.00040754,2]
[392153954,1761217832361,-150.0,0.00040938,7]
[392153955,1761217832371,-1082.93327418,0.00041028,2]
[392153956,1761217832393,-533.45672582,0.00041028,2]
[392153957,1761217832402,-200.0,0.00041096,20]
[392153958,1761217832412,-150.0,0.0004113,30]
[392153959,1761217832421,-222.57,0.00041209,120]
[392153960,1761217832431,-150.0,0.00041237,30]
[392153961,1761217832440,-150.0,0.00041237,30]
[392153962,1761217832449,-365.0,0.00041367,2]
[392153963,1761217832459,-150.0,0.00041387,30]
[392153964,1761217832469,-150.0,0.00041387,30]
[392153965,1761217832478,-366.0,0.00041438,7]
[392153966,1761217832488,-1000.0,0.000415,60]
[392153967,1761217832497,-150.0,0.00041612,30]
[392153968,1761217832507,-150.0,0.00041773,30]
[392153969,1761217832526,-168.0,0.00041788,2]
[392153970,1761217832536,-150.0,0.00041837,30]
[392153971,1761217832546,-150.0,0.00041987,30]
[392153972,1761217832556,-150.0,0.00041987,30]
[392153973,1761217832566,-150.0,0.00041987,30]
[392153974,1761217832576,-1000.0,0.00042,60]
[392153975,1761217832586,-1890.74,0.00042087,2]
[392153976,1761217832596,-458.22347898,0.00042101,31]
[392153977,1761217832607,-500.0,0.00042101,31]
[392153978,1761217832617,-500.0,0.00042101,31]
[392153979,1761217832627,-500.0,0.00042101,31]
[392153980,1761217832636,-500.0,0.00042101,31]
[392153981,1761217832646,-250.0,0.00042101,31]
[392153982,1761217832656,-2751.0,0.00042102,120]
[392153983,1761217832666,-365.0,0.00042137,7]
[392153984,1761217832676,-150.0,0.00042287,30]
[392153985,1761217832686,-150.0,0.00042287,30]
[392153986,1761217832695,-366.0,0.00042396,2]
[392153987,1761217832705,-150.0,0.00042416,30]
[392153989,1761217832715,-365.0,0.0004248,120]
[392153991,1761217832724,-1124.0,0.000425,90]
[392153993,1761217832734,-168.0,0.00042573,2]
[392153995,1761217832743,-365.0,0.00042685,2]
[392153996,1761217832752,-150.0,0.00042737,30]
[392153997,1761217832762,-150.0,0.00042737,30]
[392153998,1761217832771,-150.0,0.00042737,30]
[392153999,1761217832782,-150.0,0.00042737,30]
[392154000,1761217832791,-150.0,0.00042737,30]
[392154001,1761217832801,-365.0,0.00042819,2]
[392154002,1761217832810,-573.155,0.00042825,65]
[392154003,1761217832820,-539.51561317,0.00042987,6]
[392154004,1761217832830,-539.51561318,0.00042987,6]
[392154005,1761217832839,-300.0,0.00043,120]
[392154007,1761217832850,-1979.24,0.00043,120]
[392154008,1761217832860,-1000.0,0.00043,120]
[392154010,1761217832870,-150.0,0.00043,60]
[392154012,1761217832879,-500.0,0.00043,2]
[392154014,1761217832889,-500.0,0.00043,60]
[392154016,1761217832902,-150.0,0.00043,60]
[392154018,1761217832912,-150.0,0.00043,60]
[392154020,1761217832922,-500.0,0.00043,120]
[392154022,1761217832932,-203.78331585,0.00043,60]
[392154024,1761217832941,-168.1,0.00043006,30]
[392154027,1761217832951,-500.0,0.00043055,2]
[392154029,1761217832961,-500.0,0.00043055,60]
[392154031,1761217832971,-200.0,0.00043055,60]
[392154033,1761217832981,-500.0,0.00043055,120]
[392154035,1761217832990,-150.0,0.00043058,30]
[392154037,1761217832999,-547.46,0.00043078,30]
[392154039,1761217833009,-301.72,0.00043078,30]
[392154041,1761217833019,-547.46,0.00043078,30]
[392154043,1761217833028,-547.46,0.00043078,30]
[392154045,1761217833038,-547.46,0.00043078,30]
[392154047,1761217833048,-434.95,0.00043078,30]
[392154049,1761217833058,-151.0,0.00043084,120]
[392154051,1761217833068,-150.0,0.00043085,31]
[392154053,1761217833079,-150.0,0.00043085,31]
[392154055,1761217833088,-500.0,0.00043085,31]
[392154057,1761217833098,-150.0,0.00043085,31]
[392154059,1761217833108,-150.0,0.00043085,31]
[392154061,1761217833118,-500.0,0.00043085,31]
[392154064,1761217833129,-150.55573093,0.00043085,31]
[392154066,1761217833138,-150.0,0.00043085,31]
[392154068,1761217833148,-150.6120722,0.00043085,31]
[392154070,1761217833157,-150.0,0.00043085,31]
[392154072,1761217833167,-150.0,0.00043085,31]
[392154074,1761217833176,-150.0,0.00043085,31]
[392154076,1761217833186,-150.0,0.00043085,31]
[392154078,1761217833196,-150.0,0.00043085,2]
[392154080,1761217833206,-150.0,0.00043085,31]
[392154082,1761217833215,-500.0,0.00043085,31]
[392154084,1761217833224,-150.0,0.00043085,2]
[392154086,1761217833234,-500.0,0.00043085,31]
[392154088,1761217833243,-150.0,0.00043085,2]
[392154089,1761217833252,-500.0,0.00043085,31]
[392154092,1761217833261,-150.0,0.00043085,31]
[392154094,1761217833271,-193.24276615,0.00043086,31]
[392154096,1761217833281,-199.00607692,0.00043086,31]
[392154098,1761217833291,-500.0,0.00043086,31]
[392154100,1761217833300,-322.61164715,0.00043086,31]
[392154102,1761217833310,-4987.26513412,0.00043086,2]
[392154104,1761217833319,-686.43461475,0.00043087,30]
[392154106,1761217833329,-25361.51770085,0.00043087,2]
[392154108,1761217833342,-95354.26446048,0.00043087,2]
[392154110,1761217833356,-5787.304048,0.00043087,2]
[392154111,1761217833367,-3801.506002,0.00043087,2]
[392154112,1761217833379,-369.152992,0.00043087,2]
[392154113,1761217833390,-8870.0599998,0.00043087,2]
[392154114,1761217833468,-263.11038674,0.00043087,2]
[392154115,1761217833487,-19113.4776141,0.00043087,2]
[392154116,1761217833497,-300.0,0.0004311,2]
[392154117,1761217833507,-500.0,0.0004311,60]
[392154118,1761217833517,-500.0,0.0004311,120]
[392154119,1761217833527,-150.0,0.0004314,31]
[392154120,1761217833537,-150.0,0.0004314,31]
[392154121,1761217833684,-500.0,0.0004314,31]
[392154122,1761217833693,-150.0,0.0004314,31]
[392154123,1761217833703,-150.0,0.0004314,31]
[392154124,1761217833712,-500.0,0.0004314,31]
[392154125,1761217833721,-150.0,0.0004314,31]
[392154126,1761217833731,-150.0,0.0004314,31]
[392154127,1761217833740,-150.0,0.0004314,31]
[392154128,1761217833749,-250.0,0.0004314,31]
[392154129,1761217833758,-150.0,0.0004314,31]
[392154130,1761217833767,-500.0,0.0004314,31]
[392154131,1761217833776,-500.0,0.0004314,31]
[392154132,1761217833784,-500.0,0.0004314,31]
[392154133,1761217833794,-150.0,0.0004314,31]
[392154134,1761217833803,-500.0,0.00043164,120]
[392154135,1761217833812,-168.47,0.00043178,30]
[392154136,1761217833821,-168.47,0.00043178,30]
[392154137,1761217833830,-150.0,0.00043187,30]
[392154138,1761217833840,-150.0,0.00043187,30]
[392154139,1761217833849,-150.0,0.00043195,31]
[392154140,1761217833860,-250.0,0.00043195,31]
[392154141,1761217833870,-150.0,0.00043195,31]
[392154142,1761217833879,-150.0,0.00043195,31]
[392154143,1761217833888,-508.66087008,0.00043195,31]
[392154144,1761217833898,-150.0,0.00043195,31]
[392154145,1761217833908,-150.10592199,0.00043195,31]
[392154146,1761217833918,-150.0,0.00043195,31]
[392154147,1761217833927,-150.0,0.00043195,31]
[392154148,1761217833937,-500.0,0.00043195,31]
[392154149,1761217833946,-500.0,0.00043195,31]
[392154150,1761217833956,-400.0,0.00043195,31]
[392154151,1761217833965,-150.0,0.00043195,31]
[392154152,1761217833976,-168.0,0.00043243,2]
[392154153,1761217833985,-150.0,0.00043249,31]
[392154154,1761217833996,-200.0,0.00043249,31]
[392154155,1761217834006,-150.0,0.00043249,31]
[392154156,1761217834018,-206.21851696,0.00043249,31]
[392154157,1761217834029,-150.0,0.00043249,31]
[392154158,1761217834041,-200.0,0.00043249,31]
[392154159,1761217834052,-500.0,0.00043249,31]
[392154160,1761217834062,-150.0,0.00043249,31]
[392154161,1761217834072,-203.84660669,0.00043304,31]
[392154162,1761217834082,-150.0,0.00043304,31]
[392154163,1761217834092,-154.50843744,0.00043304,31]
[392154164,1761217834104,-250.0,0.00043304,31]
[392154165,1761217834115,-150.0,0.00043304,31]
[392154166,1761217834124,-882.84778258,0.00043315,30]
[392154167,1761217834133,-168.0,0.00043315,2]
[392154168,1761217834143,-150.0,0.00043359,31]
[392154169,1761217834153,-226.42,0.00043443,2]
[392154170,1761217834163,-150.0,0.00043487,30]
[392154171,1761217834175,-150.0,0.00043487,30]
[392154172,1761217834185,-150.0,0.00043487,30]
[392154173,1761217834194,-600.0,0.000436,15]
[392154174,1761217834204,-150.0,0.00043637,30]
[392154175,1761217834214,-1000.0,0.00043642,2]
[392154176,1761217834224,-2500.0,0.00043642,2]
[392154177,1761217834233,-1200.0,0.000437,15]
[392154178,1761217834243,-150.0,0.00043701,30]
[392154179,1761217834253,-168.47,0.00043778,30]
[392154180,1761217834262,-1900.0,0.000438,15]
[392154181,1761217834272,-16344.04554753,0.0004381,15]
[392154182,1761217834282,-164.36809574,0.0004381,15]
[392154183,1761217834291,-500.0,0.0004382,30]
[392154184,1761217834300,-500.0,0.0004382,30]
[392154185,1761217834310,-500.0,0.0004382,30]
[392154186,1761217834319,-500.0,0.0004382,30]
[392154187,1761217834329,-500.0,0.0004382,30]
[392154188,1761217834338,-500.0,0.0004382,30]
[392154189,1761217834347,-500.0,0.0004382,30]
[392154190,1761217834357,-500.0,0.0004382,30]
[392154191,1761217834367,-250.94988122,0.0004382,30]
[392154192,1761217834377,-2157.07982214,0.00043824,120]
[392154193,1761217834386,-1076.4188498,0.00043824,16]
[392154194,1761217834396,-199.18575031,0.00043824,18]
[392154195,1761217834405,-500.0,0.00043827,120]
[392154196,1761217834414,-301.47,0.00043828,30]
[392154197,1761217834424,-1034.5,0.00043828,30]
[392154198,1761217834433,-184.7,0.00043828,30]
[392154199,1761217834442,-762.84,0.00043828,30]
[392154200,1761217834452,-820.46,0.00043828,30]
[392154201,1761217834461,-300.51,0.00043828,30]
[392154202,1761217834471,-150.0,0.00043828,30]
[392154203,1761217834480,-150.0,0.00043828,30]
[392154204,1761217834489,-150.0,0.00043828,30]
[392154205,1761217834498,-150.0,0.00043828,30]
[392154206,1761217834507,-150.0,0.00043828,30]
[392154207,1761217834516,-150.0,0.00043828,30]
[392154208,1761217834526,-150.0,0.00043828,30]
[392154209,1761217834535,-150.0,0.00043828,30]
[392154210,1761217834544,-150.0,0.00043828,30]
[392154211,1761217834554,-150.0,0.00043828,30]
[392154212,1761217834564,-150.0,0.00043828,30]
[392154213,1761217834573,-150.0,0.00043828,30]
[392154214,1761217834583,-150.0,0.00043828,30]
[392154215,1761217834592,-151.68810834,0.00043828,30]
[392154216,1761217834601,-150.0,0.00043828,30]
[392154217,1761217834610,-150.0,0.00043828,30]
[392154218,1761217834619,-150.0,0.00043828,30]
[392154219,1761217834630,-151.53552264,0.00043828,30]
[392154220,1761217834641,-150.0,0.00043828,30]
[392154221,1761217834650,-150.0,0.00043828,30]
[392154222,1761217834661,-150.0,0.00043828,30]
[392154223,1761217834677,-150.0,0.00043828,30]
[392154224,1761217834691,-200.0,0.00043828,30]
[392154225,1761217834702,-292.42,0.00043828,30]
[392154226,1761217834714,-500.0,0.00043835,120]
[392154227,1761217834728,-500.0,0.00043835,120]
[392154228,1761217834741,-500.0,0.00043835,120]
[392154229,1761217834756,-500.0,0.00043835,120]
[392154230,1761217834770,-500.0,0.00043835,120]
[392154231,1761217834785,-500.0,0.00043835,120]
[392154232,1761217834796,-500.0,0.00043835,120]